bitfinex/quotes_ETHUSD_20220119
["timestamp","ask_amount","ask_price","bid_price","bid_amount"]
[1642609779962,5.85,3096.7,3096.0,3.825e-05]
[1642609780168,5.85,3096.7,3095.2,0.388]
[1642609780169,0.01246455,3096.3,3095.2,0.388]
[1642609780364,0.01246455,3096.3,3094.9,0.129]
[1642609780365,1.40798196,3095.5,3094.9,0.129]
[1642609780567,0.67305472,3095.5,3095.3,0.00511581]
[1642609781011,0.67305472,3095.5,3094.8,0.00795793]
[1642609781212,0.67305472,3095.5,3094.7,0.00852635]
[1642609781413,0.1292,3096.0,3094.8,0.1292]
[1642609781613,1.1733,3096.2,3094.8,0.1292]
[1642609781614,0.1292,3096.1,3095.4,1.43224791]
[1642609781812,0.1292,3096.1,3094.9,0.0073895]
[1642609782015,0.1292,3096.1,3095.5,0.00397896]
[1642609782212,0.1292,3096.2,3094.9,0.0073895]
[1642609782414,0.1292,3096.2,3094.9,0.80771]
[1642609782815,0.1292,3096.2,3095.0,0.00682108]
[1642609783217,0.1292,3096.2,3095.1,0.80768]
[1642609783412,0.1292,3096.2,3095.5,1.26278226]
[1642609783623,0.0022737,3096.6,3095.6,0.1292]
[1642609783827,0.0022737,3096.6,3095.6,0.52061054]
[1642609784018,3.6539,3096.7,3095.6,0.52061054]
[1642609784019,0.00170527,3096.5,3095.7,0.00284211]
[1642609784319,0.00113685,3096.4,3095.8,0.129]
[1642609784777,1.52190456,3096.5,3095.9,0.00170527]
[1642609785154,0.00113685,3096.4,3095.8,0.00227369]
[1642609785356,0.00113685,3096.4,3095.9,0.129]
[1642609785553,0.0022737,3096.6,3095.9,0.93645]
[1642609785759,0.0022737,3096.6,3096.0,0.00113684]
[1642609785955,0.129,3097.2,3096.0,0.38913684]
[1642609785956,0.00170527,3096.5,3096.0,0.38913684]
[1642609786356,0.00113685,3096.4,3096.1,1.12610727]
[1642609786556,0.00113685,3096.4,3096.2,1.32438]
[1642609786754,0.00511581,3097.1,3096.8,1.49867216]
[1642609787155,0.00454739,3097.0,3096.8,1.49867216]
[1642609787555,0.00397897,3096.9,3096.8,1.49867216]
[1642609787757,0.00397897,3096.9,3096.8,1.88667216]
[1642609788156,0.00397897,3096.9,3096.8,2.01567216]
[1642609788364,0.00397897,3096.9,3096.8,5.96567216]
[1642609788622,0.00397897,3096.9,3096.8,1.88667216]
[1642609788931,0.00397897,3096.9,3096.6,0.129]
[1642609789321,0.00341054,3096.8,3096.1,0.129]
[1642609789722,0.00284212,3096.7,3096.1,0.129]
[1642609789926,0.00284212,3096.7,3096.2,1.32083026]
[1642609790124,0.0022737,3096.6,3096.2,1.32083026]
[1642609790523,0.00170527,3096.5,3096.2,1.32083026]
[1642609790931,0.00113685,3096.4,3096.1,0.129]
[1642609791132,0.00113685,3096.4,3096.0,0.00113684]
[1642609791329,0.2769,3096.7,3096.0,0.00113684]
[1642609791524,0.04917613,3096.5,3096.0,0.00113684]
[1642609791722,0.129,3096.6,3095.6,0.00341054]
[1642609791723,0.129,3096.4,3095.6,0.00341054]
[1642609791930,0.129,3096.4,3095.2,0.129]
[1642609791931,1.15810455,3096.0,3095.2,1.66549315]
[1642609792132,0.00170527,3096.5,3095.2,1.66549315]
[1642609792393,0.1292,3096.4,3095.3,0.27051274]
[1642609792574,0.13033685,3096.4,3095.3,0.27051274]
[1642609792770,0.00113685,3096.4,3095.4,0.00454738]
[1642609793170,0.00113685,3096.4,3096.3,1.29459932]
[1642609794079,0.00113685,3096.4,3096.3,1.81159932]
[1642609794278,0.00113685,3096.4,3096.3,7.21159932]
[1642609795277,0.00113685,3096.4,3096.3,5.917]
[1642609795278,0.00033685,3096.4,3096.3,5.917]
[1642609795475,0.00033685,3096.4,3096.3,6.917]
[1642609795677,0.00033685,3096.4,3096.3,11.05681888]
[1642609795882,0.129,3097.9,3096.7,0.80709]
[1642609796124,0.27639994,3098.1,3096.8,3.80078481]
[1642609796324,0.27639994,3098.1,3097.5,1.51712401]
[1642609796325,0.00682108,3097.6,3097.5,1.51712401]
[1642609797230,0.00682108,3097.6,3097.5,3.14115401]
[1642609797430,0.129,3098.4,3097.6,5.85]
[1642609797731,0.129,3098.4,3097.7,3.83502252]
[1642609797732,0.00397897,3098.3,3097.7,3.83502252]
[1642609797929,0.00397897,3098.3,3097.7,5.76762252]
[1642609798129,0.00341054,3098.2,3097.8,0.07432855]
[1642609798327,0.00341054,3098.2,3097.9,0.517]
[1642609798527,0.00284212,3098.1,3098.0,0.80675]
[1642609798731,0.74755126,3099.3,3098.7,1.357359]
[1642609798929,2.74765464,3099.2,3098.4,0.388]
[1642609799226,3.8904,3099.6,3098.4,0.388]
[1642609799227,0.00511581,3099.0,3098.4,0.388]
[1642609799627,0.00454739,3098.9,3098.4,0.388]
[1642609800070,0.00397896,3098.8,3098.5,4.60984019]
[1642609800269,0.00397896,3098.8,3098.6,1.388]
[1642609800471,0.33234993,3100.3,3099.0,1.61307]
[1642609800672,2.74727671,3100.2,3099.3,0.80653]
[1642609800868,2.74727671,3100.2,3099.4,0.388]
[1642609801467,1.42015098,3099.9,3099.4,0.388]
[1642609801670,2.74727671,3099.8,3099.4,0.388]
[1642609803169,0.129,3100.2,3099.4,0.388]
[1642609803376,0.129,3100.2,3099.5,0.129]
[1642609803638,0.129,3100.2,3099.6,1.1944621]
[1642609803841,0.129,3100.2,3099.7,0.129]
[1642609804038,0.129,3100.2,3099.8,0.388]
[1642609804239,0.12913,3100.8,3099.8,0.388]
[1642609804240,0.12913,3100.8,3100.5,1.09993]
[1642609804447,0.12913,3100.8,3100.6,0.388]
[1642609804639,0.12913,3100.8,3100.6,1.19423]
[1642609804839,2.74652826,3100.7,3100.6,2.80652]
[1642609805040,2.75732831,3100.7,3100.6,0.388]
[1642609805639,5.831e-05,3100.8,3100.7,5.6]
[1642609805842,5.831e-05,3100.8,3100.7,1.3781]
[1642609806342,1.42546349,3101.4,3100.7,1.3781]
[1642609806541,1.42546349,3101.4,3100.7,2.184272]
[1642609806739,1.42546349,3101.4,3100.7,1.3781]
[1642609807367,1.42546349,3101.4,3100.7,0.388]
[1642609808162,0.00454739,3101.5,3100.7,0.388]
[1642609808371,0.00454739,3101.5,3100.8,1.34515558]
[1642609808564,1.0,3101.6,3100.8,1.34515558]
[1642609808565,0.00397896,3101.4,3100.9,0.388]
[1642609808968,0.00341054,3101.3,3100.9,1.1941]
[1642609809165,0.00341054,3101.3,3101.0,0.1288]
[1642609809366,0.58139321,3101.2,3101.0,0.388]
[1642609809566,1.1599443,3101.2,3101.0,1.1941]
[1642609809777,0.00227369,3101.1,3101.0,1.1941]
[1642609810174,1.0,3101.6,3101.2,5.85]
[1642609810372,0.1288,3103.0,3101.5,0.01224962]
[1642609810569,0.2421,3103.4,3102.2,0.01226806]
[1642609810773,1.62920779,3104.2,3102.5,1.32997149]
[1642609811027,0.01136847,3103.1,3103.0,4.66276878]
[1642609811219,0.05,3104.8,3103.1,5.9788]
[1642609811220,0.1133,3103.6,3103.1,5.9788]
[1642609811425,0.00568424,3104.8,3103.3,5.85]
[1642609811629,0.00568424,3104.8,3103.7,0.80518]
[1642609811842,0.00341054,3104.7,3103.8,0.5168]
[1642609812021,0.00341054,3104.7,3103.8,0.81850527]
[1642609812219,0.00284211,3104.6,3103.9,3.25467928]
[1642609812518,0.00227369,3104.5,3104.0,2.93208]
[1642609812718,0.00227369,3104.5,3104.3,1.21897542]
[1642609812921,0.00568424,3104.8,3104.4,4.9668]
[1642609813131,0.00568424,3104.8,3104.4,5.9525]
[1642609813422,0.00341054,3104.7,3104.4,9.26513211]
[1642609813620,0.00341054,3104.7,3104.5,1.0]
[1642609813824,0.00568424,3104.8,3104.6,0.5168]
[1642609814221,0.00568424,3104.8,3104.6,0.8168]
[1642609814420,2.68676332,3106.5,3104.7,5.95961558]
[1642609814623,0.5,3106.8,3105.2,5.64879]
[1642609814885,0.5,3106.8,3105.4,5.85]
[1642609815086,0.5,3106.8,3105.5,0.5167]
[1642609815291,0.5,3106.8,3105.7,4.844]
[1642609815292,0.01080005,3106.5,3105.7,4.844]
[1642609815488,0.01080005,3106.5,3105.8,0.5167]
[1642609815688,0.01023163,3106.4,3105.8,1.388]
[1642609816091,0.5,3106.8,3105.8,1.388]
[1642609816092,0.0096632,3106.3,3105.8,1.388]
[1642609816293,0.0096632,3106.3,3105.8,0.388]
[1642609816493,1.17308067,3106.5,3104.9,0.19546065]
[1642609816494,0.2074913,3105.6,3104.9,2.89012397]
[1642609816693,0.2074913,3105.6,3105.0,0.388]
[1642609816898,0.00511582,3105.5,3105.0,0.388]
[1642609817291,0.00454739,3105.4,3105.0,0.388]
[1642609817694,0.00397897,3105.3,3105.0,0.388]
[1642609818089,0.00341054,3105.2,3105.0,0.388]
[1642609818512,0.00284212,3105.1,3105.0,0.388]
[1642609818914,1.31340076,3105.1,3105.0,0.388]
[1642609819116,1.31340076,3105.1,3104.0,2.02137999]
[1642609819117,3.51340076,3105.1,3104.0,2.02137999]
[1642609819314,0.1288,3105.0,3104.2,0.388]
[1642609819517,0.1310737,3105.0,3104.1,0.00284211]
[1642609819711,0.1310737,3105.0,3104.3,0.00170527]
[1642609819712,0.00170527,3104.9,3104.3,0.00170527]
[1642609819915,0.00170527,3104.9,3103.9,0.39197896]
[1642609820112,0.00113685,3104.8,3104.3,0.388]
[1642609820510,0.0022737,3105.0,3104.4,0.00113684]
[1642609820914,1.33558569,3104.5,3104.4,0.00113684]
[1642609821312,0.0022737,3105.0,3104.4,0.00113684]
[1642609821711,0.00170527,3104.9,3104.4,0.00113684]
[1642609822123,0.00113685,3104.8,3104.4,0.00113684]
[1642609822564,0.0022737,3105.0,3104.5,0.388]
[1642609822865,0.00170527,3104.9,3104.5,1.3833]
[1642609823263,0.00113685,3104.8,3104.5,1.3833]
[1642609823666,0.2074913,3105.6,3104.5,0.388]
[1642609823667,0.00511582,3105.5,3104.5,0.388]
[1642609823865,0.1288,3105.4,3104.5,0.388]
[1642609824071,0.1288,3105.4,3104.4,0.00113684]
[1642609824072,0.13334739,3105.4,3104.4,0.00113684]
[1642609824269,0.00397897,3105.3,3104.4,0.00113684]
[1642609824469,1.54308485,3105.2,3104.0,0.00341054]
[1642609824670,1.41769539,3105.2,3104.0,0.13221054]
[1642609824868,0.00284212,3105.1,3104.1,1.193146]
[1642609825086,0.00284212,3105.1,3104.2,0.1288]
[1642609825266,0.0022737,3105.0,3104.3,0.388]
[1642609825467,1.27687958,3104.7,3104.3,0.38970527]
[1642609825667,0.00170527,3104.9,3104.4,0.00113684]
[1642609825869,0.00170527,3104.9,3104.5,0.388]
[1642609826143,1.41428485,3105.2,3104.5,0.388]
[1642609826144,0.00113685,3104.8,3104.5,0.388]
[1642609826641,0.16033342,3105.6,3104.5,0.388]
[1642609826844,1.37895154,3105.2,3104.6,0.00284212]
[1642609827149,1.67895154,3105.2,3104.6,0.00284212]
[1642609827361,0.1288,3105.1,3104.6,0.00284212]
[1642609827540,1.37895154,3105.2,3104.4,0.00397896]
[1642609827741,2.86132015,3104.6,3104.4,0.00397896]
[1642609828343,0.1288,3105.4,3104.4,0.00397896]
[1642609828546,0.0022737,3105.5,3104.4,0.00397896]
[1642609828547,0.1310737,3105.5,3104.4,4.30323588]
[1642609828743,0.00113685,3105.3,3104.5,1.5168]
[1642609828945,0.16033342,3105.6,3104.6,3.12891254]
[1642609828946,0.00170527,3105.4,3104.6,3.12891254]
[1642609829143,0.00170527,3105.4,3104.7,1.5168]
[1642609829357,0.00113685,3105.3,3104.7,1.51907369]
[1642609829646,0.00113685,3105.3,3104.8,0.00170527]
[1642609829868,0.00113685,3105.3,3104.9,0.5168]
[1642609830663,0.16033342,3105.6,3104.9,0.8168]
[1642609830869,0.16033342,3105.6,3105.0,5.85]
[1642609831065,0.00113685,3105.5,3105.1,0.5168]
[1642609831264,2.5272246,3106.6,3105.2,5.85]
[1642609831463,2.5272246,3106.6,3105.5,1.60956]
[1642609831662,1.478715,3106.4,3105.6,0.5167]
[1642609831863,1.478715,3106.4,3105.6,2.1262724]
[1642609832062,0.00454738,3106.3,3105.7,0.3]
[1642609832264,0.00454738,3106.3,3105.8,0.388]
[1642609832467,0.00397896,3106.2,3105.8,0.388]
[1642609832864,0.00341054,3106.1,3105.8,0.388]
[1642609833064,0.00341054,3106.1,3105.8,3.41920406]
[1642609833267,2.5272246,3106.6,3105.9,0.8047698]
[1642609833268,0.00284211,3106.0,3105.9,0.8047698]
[1642609833520,2.5272246,3106.6,3106.0,5.85]
[1642609833723,0.1332,3108.4,3106.1,7.8471299]
[1642609833724,0.1287,3108.1,3106.1,7.8471299]
[1642609833923,0.1287,3108.1,3106.1,0.7239]
[1642609833924,0.00284212,3106.5,3106.1,0.7239]
[1642609834124,0.00284212,3106.5,3106.1,0.388]
[1642609834425,0.01268797,3107.0,3106.1,0.388]
[1642609834426,0.0022737,3106.4,3106.1,0.388]
[1642609834622,2.72231435,3106.3,3106.1,0.388]
[1642609834821,2.72401962,3106.3,3106.1,0.388]
[1642609835126,0.00113685,3106.2,3106.1,0.388]
[1642609836924,2.85113685,3106.2,3105.3,0.00113685]
[1642609837127,0.55837963,3105.9,3105.3,0.00113685]
[1642609837366,0.55837963,3105.9,3104.6,0.1287]
[1642609837367,0.55837963,3105.9,3105.1,0.00511581]
[1642609837565,1.34581006,3104.9,3104.7,0.0073895]
[1642609837774,1.4655792,3104.8,3104.7,0.0073895]
[1642609838570,1.7655792,3104.8,3103.8,0.01250531]
[1642609838772,0.1288,3104.7,3103.8,0.01250531]
[1642609838974,3.09305779,3104.7,3103.8,0.01250531]
[1642609839174,3.09305779,3104.7,3103.4,0.01477901]
[1642609839175,0.01206807,3104.3,3103.4,0.01477901]
[1642609839374,0.01206807,3104.3,3103.1,0.01648428]
[1642609839375,0.05434984,3104.1,3103.1,0.01648428]
[1642609839580,0.04931434,3103.9,3102.4,0.02046324]
[1642609839769,0.04931434,3103.9,3102.1,0.40009301]
[1642609839770,0.05566753,3103.7,3102.3,0.02103167]
[1642609839974,0.1288,3103.6,3102.3,0.02103167]
[1642609840170,1.52841613,3102.9,3102.3,0.02103167]
[1642609840374,1.52841613,3102.9,3102.1,0.02216851]
[1642609840572,1.52841613,3102.9,3101.8,0.388]
[1642609840768,1.52841613,3102.9,3101.9,0.1289]
[1642609841015,1.52841613,3102.9,3101.8,0.1288]
[1642609841016,1.12369685,3102.8,3101.8,0.1288]
[1642609841414,0.00397897,3102.7,3101.8,0.1288]
[1642609841714,0.00341054,3102.6,3101.8,0.1288]
[1642609842115,0.00284212,3102.5,3101.8,0.1288]
[1642609842318,0.00284212,3102.5,3101.5,0.1288]
[1642609842526,0.19310051,3102.4,3101.5,0.1288]
[1642609842717,0.06430051,3102.4,3101.6,0.00227369]
[1642609842923,0.05603998,3102.2,3101.6,0.00227369]
[1642609843117,0.00170527,3102.3,3101.6,0.00227369]
[1642609843322,0.13277897,3102.7,3101.6,0.00227369]
[1642609843518,3.8444,3103.6,3101.7,0.20327185]
[1642609843519,0.00113685,3102.2,3101.7,0.20327185]
[1642609843724,6.4997366,3103.6,3101.7,0.20327185]
[1642609843725,0.00341054,3102.6,3101.7,0.20327185]
[1642609843922,0.13732636,3103.5,3101.8,0.46360869]
[1642609844120,0.00284212,3102.5,3101.9,0.1288]
[1642609844321,2.66329453,3103.4,3101.9,0.5168]
[1642609844523,0.0022737,3102.4,3101.9,0.5168]
[1642609844799,0.13618951,3103.3,3102.2,1.0214]
[1642609844989,0.00170527,3102.3,3102.2,8.0068]
[1642609845188,0.00682109,3103.2,3102.2,8.08127185]
[1642609845386,0.00170527,3102.3,3102.2,7.2011]
[1642609845591,0.00625266,3103.1,3102.2,7.2011]
[1642609845787,0.1288,3103.4,3102.2,1.7391]
[1642609845788,0.00170527,3102.3,3102.2,1.7391]
[1642609845989,1.31231918,3102.7,3102.2,0.388]
[1642609846187,1.47381527,3102.3,3102.2,0.388]
[1642609846387,1.47211,3102.3,3102.2,0.388]
[1642609846587,0.00170527,3102.3,3102.2,0.388]
[1642609847789,0.00170527,3102.3,3102.2,3.188]
[1642609849819,0.00170527,3102.3,3102.2,5.788]
[1642609850020,0.00170527,3102.3,3102.2,3.188]
[1642609850220,0.00170527,3102.3,3102.2,0.388]
[1642609850620,0.00170527,3102.3,3102.2,0.338]
[1642609850828,0.00170527,3102.3,3101.8,0.12993684]
[1642609851022,0.00170527,3102.3,3101.8,0.00113684]
[1642609851222,0.00113685,3102.2,3101.8,0.00113684]
[1642609851423,0.12993685,3102.2,3101.8,0.00113684]
[1642609851622,1.41592525,3102.1,3101.4,0.00341054]
[1642609851824,2.88634484,3102.0,3101.0,0.00568423]
[1642609852025,2.88634484,3102.0,3100.9,0.00625265]
[1642609852268,3.18634484,3102.0,3100.9,0.00625265]
[1642609852770,1.3969735,3101.0,3100.9,0.00625265]
[1642609853773,0.1288,3101.9,3100.9,3.30625265]
[1642609853979,0.1288,3101.9,3100.9,3.68068722]
[1642609854176,0.1288,3101.9,3101.0,0.39368423]
[1642609854177,0.11982052,3101.9,3101.0,0.39368423]
[1642609854575,0.11982052,3101.9,3101.1,0.07955038]
[1642609854775,0.11982052,3101.9,3101.2,2.40246373]
[1642609854977,0.11982052,3101.9,3101.4,0.01273514]
[1642609854978,2.052e-05,3101.9,3101.4,0.01273514]
[1642609855179,0.00170527,3102.3,3101.6,0.0229607]
[1642609855378,0.00170527,3102.3,3101.7,0.5167]
[1642609855578,0.1288,3104.1,3102.1,0.01257566]
[1642609855579,2.49998616,3104.0,3102.1,0.01257566]
[1642609855792,2.49998616,3104.0,3102.8,1.61116]
[1642609856038,2.49998616,3104.0,3103.0,0.80556]
[1642609856039,0.1288,3103.9,3103.0,0.80556]
[1642609856324,0.1288,3103.9,3102.9,3.26815502]
[1642609856325,0.00909478,3103.8,3103.1,3.51601465]
[1642609856523,0.00909478,3103.8,3103.2,1.388]
[1642609856721,0.08520488,3105.0,3103.4,0.80544]
[1642609856923,2.50075668,3104.9,3103.8,0.8054599]
[1642609857127,1.46000372,3103.9,3103.7,1.9989197]
[1642609857527,1.46000372,3103.9,3103.5,0.00170527]
[1642609857927,1.46000372,3103.9,3103.3,0.00284212]
[1642609857928,1.32320215,3103.7,3103.3,0.00284212]
[1642609858127,5.2,3103.5,3102.1,0.388]
[1642609858326,5.2,3103.5,3101.8,1.6118429]
[1642609858327,1.27739769,3102.0,3101.8,1.6118429]
[1642609858533,1.27739769,3102.0,3101.7,1.0]
[1642609858739,1.27739769,3102.0,3101.3,0.1289]
[1642609858926,1.27739769,3102.0,3101.8,0.00852635]
[1642609859128,1.31170222,3101.9,3101.8,0.00852635]
[1642609859525,1.31170222,3101.9,3101.3,0.01136847]
[1642609859776,1.31170222,3101.9,3101.1,0.1288]
[1642609859977,1.31170222,3101.9,3101.1,0.14130532]
[1642609860179,1.31170222,3101.9,3101.2,0.01193689]
[1642609860384,1.31170222,3101.9,3101.2,0.81807069]
[1642609860578,1.27739769,3102.0,3101.2,1.62408069]
[1642609860783,1.27739769,3102.0,3101.4,1.61181]
[1642609860980,0.1288,3102.5,3101.4,3.2236105]
[1642609861186,0.27639994,3102.6,3101.5,0.13903162]
[1642609861379,0.27639994,3102.6,3101.5,3.15949172]
[1642609861682,0.1288,3102.9,3101.7,1.6118309]
[1642609861683,0.00568423,3102.5,3101.7,1.6118309]
[1642609861887,0.00568423,3102.5,3101.8,6.73112468]
[1642609862081,0.00511581,3102.4,3101.9,1.0]
[1642609862378,1.21545557,3103.4,3102.1,5.85]
[1642609862580,0.01279376,3103.9,3102.5,0.80561]
[1642609862781,0.00568424,3103.3,3102.6,1.61125]
[1642609863183,0.00511582,3103.2,3102.7,0.388]
[1642609863633,0.00454739,3103.1,3102.7,0.388]
[1642609864027,0.00397897,3103.0,3102.7,0.388]
[1642609864430,1.19071307,3103.5,3102.8,4.95]
[1642609864629,1.19071307,3103.5,3102.9,0.1288]
[1642609864827,1.19071307,3103.5,3102.8,5.0788]
[1642609865028,1.19071307,3103.5,3103.1,0.8055995]
[1642609865629,1.19071307,3103.5,3102.4,0.1288]
[1642609865630,2.40856881,3103.5,3102.4,0.1288]
[1642609865831,2.40856881,3103.5,3102.3,0.388]
[1642609866032,0.01273207,3103.3,3102.5,0.0022737]
[1642609866229,0.1288,3103.2,3102.4,0.00284212]
[1642609866433,0.13050527,3103.2,3101.9,0.00568424]
[1642609866629,1.21201972,3102.3,3101.8,0.00625266]
[1642609866829,0.1288,3103.0,3101.8,0.00625266]
[1642609867464,0.1288,3103.0,3101.8,0.81217246]
[1642609867668,1.14961843,3102.7,3101.8,3.88407876]
[1642609867871,1.14961843,3102.7,3101.9,3.74587424]
[1642609868267,1.14961843,3102.7,3102.0,0.00511582]
[1642609868467,1.14961843,3102.7,3102.1,0.9346946]
[1642609868873,1.14961843,3102.7,3102.2,0.00397897]
[1642609869082,1.14961843,3102.7,3101.2,0.1289]
[1642609869083,1.15276764,3102.3,3101.2,0.1289]
[1642609869471,1.15276764,3102.3,3101.3,0.00511581]
[1642609870074,1.15276764,3102.3,3101.0,0.00682108]
[1642609870274,0.1288,3102.5,3101.1,5.0788]
[1642609870275,1.48975438,3101.2,3101.1,5.0788]
[1642609870474,1.48975438,3101.2,3101.0,0.00682108]
[1642609870687,1.25265829,3101.6,3101.1,3.35625266]
[1642609870875,0.00113685,3102.4,3101.1,4.2848828]
[1642609870876,0.12993685,3102.4,3101.1,4.2848828]
[1642609871118,0.00113685,3102.4,3101.2,0.00568423]
[1642609871314,0.1288,3102.3,3101.2,0.00568423]
[1642609871723,1.14197791,3102.2,3101.2,0.00568423]
[1642609871917,0.1288,3102.1,3101.2,0.00568423]
[1642609872117,1.41872342,3101.1,3100.8,0.00795793]
[1642609872316,1.41872342,3101.1,3100.7,29.95795793]
[1642609872516,1.31347755,3101.3,3100.8,4.3]
[1642609872719,1.31347755,3101.3,3100.8,4.30113685]
[1642609873120,0.1288,3101.9,3100.8,4.30113685]
[1642609873519,1.45613815,3101.3,3100.8,4.30113685]
[1642609873729,1.45613815,3101.3,3100.8,0.00113685]
[1642609873920,0.00113685,3101.2,3100.8,0.00113685]
[1642609874521,1.50031374,3100.9,3100.8,0.00113685]
[1642609875171,1.50031374,3100.9,3100.7,29.95795793]
[1642609875172,2.25,3100.8,3100.7,29.90909478]
[1642609875369,2.379,3100.8,3100.7,29.90909478]
[1642609875770,2.379,3100.8,3100.7,19.26409478]
[1642609875771,4.879,3100.8,3100.7,19.26409478]
[1642609875971,6.09886158,3100.8,3100.7,9.43579478]
[1642609876172,0.07888303,3100.7,3100.0,0.03]
[1642609876374,0.06595053,3100.5,3100.0,0.03]
[1642609876571,0.129,3100.4,3100.1,0.00397896]
[1642609876981,6.01113,3100.5,3099.1,0.129]
[1642609877179,6.01113,3100.5,3098.6,3.714]
[1642609877180,2.62115999,3099.2,3098.6,3.714]
[1642609877376,2.62115999,3099.2,3098.7,0.17529346]
[1642609877572,0.129,3100.1,3098.6,3.714]
[1642609877876,0.16113,3099.8,3098.8,0.00738951]
[1642609878073,0.129,3099.7,3098.8,0.00738951]
[1642609878529,0.129,3099.7,3099.4,1.54474192]
[1642609878735,0.00170527,3100.4,3099.4,1.54474192]
[1642609879034,0.00113685,3100.3,3099.5,3.61141054]
[1642609879230,0.00113685,3100.3,3099.5,3.91141054]
[1642609879431,0.129,3101.0,3099.6,1.61587862]
[1642609879432,0.13411581,3101.0,3099.6,1.61587862]
[1642609879638,1.49261977,3100.3,3099.6,0.80934862]
[1642609879831,0.00454739,3100.9,3099.7,0.0022737]
[1642609880035,0.129,3100.8,3099.7,0.0022737]
[1642609880234,0.13297896,3100.8,3099.7,0.08619864]
[1642609880441,0.15065836,3101.4,3100.0,1.0856625]
[1642609880442,0.00341054,3100.7,3100.0,1.0856625]
[1642609880643,0.00341054,3100.7,3100.1,3.87477945]
[1642609880834,0.00284212,3100.6,3100.2,2.30545017]
[1642609881040,0.00284212,3100.6,3100.3,0.517]
[1642609881239,0.00227369,3100.5,3100.3,0.517]
[1642609881438,0.00227369,3100.5,3100.4,6.01127]
[1642609881638,0.129,3102.2,3100.4,9.70478096]
[1642609881844,2.54259739,3102.1,3100.9,0.8061437]
[1642609882144,0.00909477,3101.7,3101.0,0.1288]
[1642609882377,0.00909477,3101.7,3101.0,4.0427]
[1642609882582,0.1288,3102.5,3101.1,3.89421831]
[1642609882583,0.00852635,3101.6,3101.1,3.89421831]
[1642609882781,0.00852635,3101.6,3101.2,0.1288]
[1642609883002,1.62920779,3103.4,3101.3,1.0120969]
[1642609883003,0.00795793,3101.5,3101.3,1.0120969]
[1642609883282,0.01279224,3103.6,3101.3,1.0120969]
[1642609883283,0.1288,3103.5,3101.4,9.54896917]
[1642609883480,1.38718099,3102.9,3102.0,1.47197467]
[1642609883682,1.38718099,3102.9,3102.0,0.388]
[1642609883882,2.67665622,3102.8,3102.0,0.388]
[1642609884079,2.67665622,3102.8,3101.8,1.6116]
[1642609884278,0.01477901,3102.7,3101.8,1.6116]
[1642609884484,0.1288,3102.6,3101.5,1.6119098]
[1642609884688,2.69956458,3102.2,3101.5,1.6119098]
[1642609885085,2.69956458,3102.2,3101.1,0.16127]
[1642609885086,0.01245051,3101.6,3100.4,1.6861361]
[1642609885286,0.01245051,3101.6,3100.5,0.16336179]
[1642609885287,0.04911223,3101.5,3100.5,0.16336179]
[1642609885483,0.13695793,3101.5,3100.6,0.16336179]
[1642609885681,0.13695793,3101.5,3100.1,3.7753]
[1642609885682,0.0073895,3101.4,3100.1,3.7753]
[1642609885880,0.0073895,3101.4,3100.2,0.29234582]
[1642609886127,0.00682108,3101.3,3100.8,1.23725907]
[1642609886326,0.00682108,3101.3,3100.4,0.1288]
[1642609886537,0.16113,3101.5,3100.1,3.7753]
[1642609886538,0.13505266,3101.2,3100.1,3.7753]
[1642609886730,2.709907,3101.1,3100.1,3.7753]
[1642609886936,2.709907,3101.1,3099.8,0.00170527]
[1642609886937,2.67778992,3101.0,3099.8,0.00170527]
[1642609887130,0.94074581,3101.0,3099.8,0.00170527]
[1642609887431,0.94074581,3101.0,3099.5,1.01769167]
[1642609887432,0.00454739,3100.9,3099.5,1.01769167]
[1642609887627,0.129,3100.8,3099.5,2.63064167]
[1642609887831,0.13582108,3100.8,3099.5,2.63064167]
[1642609888125,0.00625266,3100.7,3099.5,2.63064167]
[1642609888527,0.00568424,3100.6,3100.0,1.49035803]
[1642609888927,0.00511581,3100.5,3100.0,1.49035803]
[1642609889332,0.00454739,3100.4,3100.0,1.49035803]
[1642609889632,0.00397897,3100.3,3100.1,0.29027]
[1642609889905,2.71570512,3101.9,3100.1,0.129]
[1642609889906,0.00738951,3100.9,3100.1,0.129]
[1642609890112,0.00341054,3100.2,3100.1,0.93535]
[1642609890304,0.00682108,3100.8,3100.5,1.10640719]
[1642609890506,1.51939501,3101.3,3100.1,0.59027]
[1642609890507,0.00341054,3100.2,3100.1,0.59027]
[1642609890709,0.00625266,3100.7,3100.5,0.0737123]
[1642609890911,2.69363444,3102.3,3100.5,0.0737123]
[1642609890912,0.129,3102.3,3100.6,0.67827]
[1642609891107,0.1288,3102.6,3100.9,0.80609]
[1642609891306,0.01193689,3101.7,3101.0,0.1288]
[1642609891509,1.39864808,3101.6,3100.8,0.1288]
[1642609891710,1.39864808,3101.6,3100.7,5.31515899]
[1642609891711,1.41001655,3101.6,3100.7,5.44395899]
[1642609891907,0.1288,3102.0,3100.7,5.44395899]
[1642609891908,0.01080005,3101.5,3100.7,5.44395899]
[1642609892109,0.01080005,3101.5,3100.8,0.8062]
[1642609892310,0.01023162,3101.4,3100.8,0.8062]
[1642609892508,0.01023162,3101.4,3100.9,0.806199]
[1642609892716,0.0096632,3101.3,3100.9,0.806199]
[1642609893111,0.1288,3102.0,3100.9,0.806199]
[1642609893310,0.1288,3102.0,3101.0,0.00113685]
[1642609893537,0.00284211,3101.7,3101.0,0.00113685]
[1642609893744,0.00284211,3101.7,3101.1,1.6122581]
[1642609893944,2.99828957,3102.5,3101.0,0.00113685]
[1642609893945,0.00227369,3101.6,3101.0,0.00113685]
[1642609894246,0.28993,3102.5,3100.7,9.490208]
[1642609894247,1.43114134,3101.2,3100.8,0.0022737]
[1642609894447,4.33439617,3101.2,3100.8,0.0022737]
[1642609894649,3.13137334,3101.1,3100.8,0.0022737]
[1642609894949,3.13137334,3101.1,3100.2,0.00183403]
[1642609894950,4.17017334,3101.1,3100.3,0.00511581]
[1642609895252,1.0,3101.0,3100.3,0.00511581]
[1642609895443,4.25192272,3100.9,3100.3,0.00511581]
[1642609895642,1.4311978,3100.8,3100.3,0.00511581]
[1642609895856,0.80673,3100.6,3100.3,0.00511581]
[1642609896049,6.01113,3100.4,3100.3,0.00511581]
[1642609896250,6.14013,3100.4,3100.3,0.00511581]
[1642609896444,7.44013,3100.4,3100.3,0.00511581]
[1642609896645,7.1556447,3100.4,3100.3,0.00511581]